bitfinex-derivatives/quotes_SOLF0:USTF0_20250821
["timestamp","ask_amount","ask_price","bid_price","bid_amount"]
[1755758220837,2.86,187.48,187.38,2.28809337]
[1755758221134,2.86,187.48,187.39,3.01]
[1755758221335,2.86,187.48,187.4,5.336]
[1755758221535,139.08027157,187.55,187.39,3.01]
[1755758221536,2.86,187.46,187.39,3.01]
[1755758222736,2.28809337,187.49,187.41,3.01]
[1755758223339,2.28809337,187.49,187.42,5.3353]
[1755758223845,2.28809337,187.49,187.43,5.3352]
[1755758224037,2.28809337,187.49,187.43,3.01]
[1755758224945,2.86,187.47,187.4,5.29809337]
[1755758225446,2.86,187.47,187.4,3.01]
[1755758227344,2.86,187.47,187.4,8.3461]
[1755758228445,2.28809337,187.49,187.42,3.01]
[1755758229948,2.28809337,187.49,187.43,5.3352]
[1755758230250,2.28809337,187.49,187.42,3.01]
[1755758230645,2.28809337,187.49,187.42,8.3454]
[1755758231752,2.86,187.5,187.44,3.01]
[1755758232451,2.86,187.5,187.44,8.3448]
[1755758233751,5.14809337,187.52,187.44,3.01]
[1755758234252,5.14809337,187.52,187.45,5.3346]
[1755758235252,5.14809337,187.52,187.44,8.3449]
[1755758237145,5.14809337,187.52,187.45,5.3347]
[1755758237348,5.14809337,187.52,187.46,3.01]
[1755758239550,2.28809337,187.52,187.46,8.3444]
[1755758239755,138.15177637,187.55,187.46,8.3444]
[1755758239756,2.86,187.53,187.46,3.01]
[1755758240150,2.86,187.53,187.44,2.28809337]
[1755758240151,2.86,187.53,187.49,3.01]
[1755758240356,138.15177637,187.55,187.48,3.01]
[1755758241056,141.01177637,187.55,187.51,3.01]
[1755758241357,2.86,187.54,187.51,3.01]
[1755758241556,141.01177637,187.55,187.47,5.29809337]
[1755758241862,141.01177637,187.55,187.47,2.28809337]
[1755758242060,141.01177637,187.55,187.49,5.3334]
[1755758242559,141.01177637,187.55,187.51,3.01]
[1755758242560,2.86,187.54,187.51,3.01]
[1755758242760,2.86,187.54,187.52,4.86298469]
[1755758242959,138.15177637,187.55,187.53,4.86298469]
[1755758243257,141.01177637,187.55,187.54,4.86298469]
[1755758244456,141.01177637,187.55,187.54,4.86361862]
[1755758249062,2.76,187.54,187.47,5.20809337]
[1755758249363,2.76,187.54,187.48,4.86499299]
[1755758249565,2.76,187.53,187.49,4.86499299]
[1755758249765,2.76,187.52,187.5,4.86499299]
[1755758249965,2.76,187.52,187.51,4.86499299]
[1755758251964,2.76,187.52,187.51,6.788804]
[1755758253671,2.76,187.52,187.48,5.3338]
[1755758253871,2.76,187.52,187.49,9.73452942]
[1755758254072,2.76,187.52,187.5,4.89096853]
[1755758254271,2.76,187.52,187.51,6.81450346]
[1755758254472,2.76,187.52,187.51,1.92346965]
[1755758254669,2.76,187.52,187.51,6.81420619]
[1755758260573,138.15177637,187.55,187.51,6.81420619]
[1755758260774,138.15177637,187.55,187.53,2.92]
[1755758261073,138.15177637,187.55,187.54,6.81420619]
[1755758261775,138.15177637,187.55,187.54,9.73420619]
[1755758262771,138.15177637,187.55,187.54,6.81420619]
[1755758262971,138.15177637,187.55,187.54,6.81129784]
[1755758263375,140.91177637,187.55,187.54,6.81129784]
[1755758265979,270.81177637,187.55,187.54,6.81129784]
[1755758266181,132.66,187.55,187.54,6.81129784]
[1755758268078,2.28809337,187.57,187.54,6.81129784]
[1755758268285,2.28809337,187.57,187.55,6.81129784]
[1755758268286,2.76,187.57,187.55,6.81129784]
[1755758268483,2.76,187.57,187.56,6.81175461]
[1755758269174,2.76,187.57,187.56,6.81297084]
[1755758270680,2.76,187.57,187.56,4.88989276]
[1755758271184,2.76,187.57,187.56,6.81361072]
[1755758272078,2.76,187.57,187.56,1.92371796]
[1755758272280,2.76,187.57,187.56,6.81687756]
[1755758273589,2.76,187.57,187.48,2.92]
[1755758273787,2.76,187.55,187.49,1.92487701]
[1755758273987,2.28809337,187.56,187.5,1.92487701]
[1755758274184,2.28809337,187.56,187.51,1.92487701]
[1755758274380,2.76,187.54,187.52,1.92487701]
[1755758274582,2.76,187.54,187.53,1.92487701]
[1755758278886,2.76,187.54,187.45,2.74]
[1755758279087,2.91,187.51,187.45,2.74]
[1755758280290,2.91,187.48,187.42,2.74]
[1755758280491,2.91,187.48,187.38,4.48866826]
[1755758280688,5.19809337,187.46,187.38,2.74]
[1755758281590,2.28809337,187.43,187.38,2.74]
[1755758281791,2.28809337,187.43,187.32,129.9]
[1755758281986,2.91,187.41,187.35,2.74]
[1755758282586,129.9,187.45,187.35,2.74]
[1755758282587,2.28809337,187.4,187.35,2.74]
[1755758282791,2.91,187.39,187.32,2.74]
[1755758285593,2.91,187.39,187.33,4.81226502]
[1755758285794,2.91,187.38,187.34,7.55226502]
[1755758285998,2.91,187.37,187.35,4.81226502]
[1755758286301,2.91,187.37,187.36,4.81226502]
[1755758286694,5.19809337,187.4,187.36,4.81226502]
[1755758286897,2.91,187.38,187.37,4.81226502]
[1755758287294,2.91,187.38,187.25,5.3401]
[1755758287495,5.19809337,187.35,187.27,2.74]
[1755758287698,2.91,187.31,187.28,4.80576311]
[1755758287898,5.19809337,187.35,187.29,4.80576311]
[1755758288097,5.19809337,187.35,187.3,4.80576311]
[1755758288300,2.91,187.34,187.29,2.74]
[1755758288597,2.91,187.34,187.3,7.54129105]
[1755758288801,2.91,187.34,187.3,2.74]
[1755758289391,2.28809337,187.35,187.24,2.28809337]
[1755758289392,2.28809337,187.35,187.25,2.74]
[1755758289592,2.28809337,187.35,187.27,2.74]
[1755758289801,2.91,187.37,187.29,2.74]
[1755758290198,2.91,187.37,187.3,4.79645358]
[1755758290397,2.91,187.37,187.31,4.79645358]
[1755758290693,2.91,187.37,187.29,2.74]
[1755758290899,2.91,187.37,187.3,4.79306263]
[1755758291095,2.91,187.37,187.31,4.79306263]
[1755758291299,2.91,187.37,187.29,2.74]
[1755758291499,2.91,187.37,187.3,4.79040264]
[1755758291707,2.91,187.37,187.29,2.74]
[1755758291905,2.91,187.37,187.3,4.79040373]
[1755758292106,2.91,187.37,187.29,2.74]
[1755758292304,2.91,187.33,187.29,2.74]
[1755758293004,2.91,187.33,187.25,2.74]
[1755758293306,2.91,187.33,187.26,4.78758797]
[1755758293603,2.28809337,187.35,187.24,7.62859337]
[1755758293604,2.28809337,187.35,187.27,7.52758797]
[1755758293801,2.28809337,187.35,187.28,4.78758797]
[1755758293998,2.28809337,187.35,187.27,2.74]
[1755758294206,2.28809337,187.35,187.28,4.78464395]
[1755758294406,2.28809337,187.35,187.27,2.74]
[1755758294603,2.28809337,187.35,187.28,4.78271033]
[1755758294907,2.91,187.34,187.27,2.74]
[1755758295106,2.28809337,187.32,187.23,2.74]
[1755758295298,2.91,187.31,187.24,4.78234308]
[1755758295503,2.91,187.31,187.25,4.78234308]
[1755758295703,2.91,187.3,187.26,7.52234308]
[1755758295903,2.91,187.3,187.26,2.74]
[1755758296306,2.28809337,187.29,187.23,2.74]
[1755758296504,2.91,187.28,187.23,2.74]
[1755758297211,2.28809337,187.29,187.23,2.74]
[1755758297413,2.91,187.28,187.19,2.74]
[1755758297615,2.91,187.28,187.2,4.77489883]
[1755758297903,2.91,187.28,187.19,2.74]
[1755758297904,2.28809337,187.26,187.19,2.74]
[1755758298107,2.28809337,187.26,187.2,4.77503513]
[1755758298311,2.28809337,187.26,187.19,2.74]
[1755758298611,2.28809337,187.26,187.2,4.77215341]
[1755758298807,2.28809337,187.26,187.19,2.74]
[1755758299007,2.28809337,187.26,187.2,4.77215341]
[1755758299307,2.28809337,187.27,187.19,2.74]
[1755758299507,2.28809337,187.27,187.21,2.74]
[1755758300910,2.91,187.29,187.21,2.74]
[1755758303303,2.28809337,187.28,187.21,2.74]
[1755758304607,5.19809337,187.28,187.18,5.02809337]
[1755758304806,2.91,187.25,187.18,2.74]
[1755758308412,2.77,187.22,187.15,2.97]
[1755758312315,2.77,187.22,187.12,2.97]
[1755758312513,2.28809337,187.2,187.12,2.97]
[1755758312706,2.77,187.19,187.12,2.97]
[1755758314115,2.28809337,187.2,187.12,2.97]
[1755758318214,2.28809337,187.18,187.12,2.97]
[1755758318409,2.77,187.16,187.12,2.97]
[1755758318604,2.77,187.17,187.08,2.28809337]
[1755758318807,2.28809337,187.16,187.09,7.7172714]
[1755758319005,2.77,187.15,187.06,262.42121205]
[1755758319214,2.77,187.13,187.07,4.74734917]
[1755758319406,2.28809337,187.14,187.08,4.74933375]
[1755758319611,2.77,187.12,187.06,265.39121205]
[1755758319811,2.77,187.12,187.08,2.97]
[1755758320018,2.28809337,187.14,187.08,2.97]
[1755758320210,2.77,187.13,187.04,5.25809337]
[1755758320416,2.77,187.13,187.05,4.75299205]
[1755758320711,2.77,187.13,187.06,4.75299205]
[1755758321019,5.05809337,187.16,187.08,2.97]
[1755758321216,2.77,187.16,187.1,2.97]
[1755758322014,2.28809337,187.18,187.1,2.97]
[1755758322221,2.77,187.17,187.11,4.7590463]
[1755758322420,2.77,187.17,187.1,2.97]
[1755758322815,2.77,187.17,187.11,4.75827671]
[1755758323015,2.77,187.17,187.12,2.97]
[1755758323215,5.05809337,187.2,187.13,4.76344275]
[1755758323415,5.05809337,187.2,187.13,2.97]
[1755758324112,5.05809337,187.2,187.14,4.76294635]
[1755758324113,2.77,187.2,187.14,4.76294635]
[1755758324423,2.28809337,187.22,187.15,4.76294635]
[1755758324722,2.77,187.21,187.17,2.97]
[1755758326925,2.77,187.2,187.12,2.97]
[1755758327122,5.05809337,187.2,187.13,4.77069027]
[1755758327423,5.05809337,187.2,187.12,2.97]
[1755758327618,5.05809337,187.2,187.13,4.77310417]
[1755758327921,5.05809337,187.2,187.14,7.74310417]
[1755758328220,5.05809337,187.2,187.15,4.77310417]
[1755758328425,5.05809337,187.2,187.14,2.97]
[1755758328723,5.05809337,187.2,187.11,5.3442]
[1755758328724,2.77,187.19,187.15,7.74466277]
[1755758329028,2.77,187.19,187.15,2.97]
[1755758330525,2.77,187.19,187.16,4.77863996]
[1755758330828,2.77,187.19,187.15,2.97]
[1755758331023,2.77,187.19,187.16,4.77863996]
[1755758331324,2.77,187.19,187.15,2.97]
[1755758331625,2.77,187.19,187.16,4.78095699]
[1755758331922,2.77,187.19,187.15,2.97]
[1755758332122,2.77,187.19,187.16,4.78095759]
[1755758332323,2.77,187.19,187.15,2.97]
[1755758332524,2.77,187.19,187.16,4.78364188]
[1755758332722,2.77,187.19,187.15,2.97]
[1755758332925,2.77,187.19,187.16,4.78364188]
[1755758333122,2.77,187.19,187.15,2.97]
[1755758333324,2.77,187.19,187.16,4.78364188]
[1755758333625,2.77,187.19,187.15,2.97]
[1755758333827,2.77,187.18,187.16,4.78456569]
[1755758334126,2.77,187.18,187.15,2.97]
[1755758334422,2.77,187.18,187.16,4.78456618]
[1755758334724,2.77,187.18,187.12,2.97]
[1755758335021,2.28809337,187.2,187.14,2.97]
[1755758335223,2.77,187.22,187.16,2.97]
[1755758335224,5.05809337,187.22,187.16,2.97]
[1755758335423,2.77,187.21,187.17,7.7558415]
[1755758335624,2.77,187.2,187.17,2.97]
[1755758339027,2.77,187.2,187.18,4.79442456]
[1755758339223,2.77,187.2,187.17,2.97]
[1755758339428,2.77,187.2,187.18,4.79698255]
[1755758339630,2.77,187.2,187.17,2.97]
[1755758339831,2.77,187.2,187.18,4.79698255]
[1755758340127,2.77,187.2,187.17,2.97]
[1755758340328,2.77,187.2,187.18,4.79685119]
[1755758340529,2.77,187.2,187.17,2.97]
[1755758340732,2.77,187.2,187.18,4.79880454]
[1755758340930,2.77,187.2,187.17,2.97]
[1755758341131,2.77,187.2,187.18,4.79880454]
[1755758341329,2.77,187.2,187.17,2.97]
[1755758341529,2.77,187.2,187.18,4.80000612]
[1755758341732,2.77,187.2,187.17,2.97]
[1755758341935,2.77,187.2,187.18,4.80034863]
[1755758342230,2.77,187.2,187.17,2.97]
[1755758342428,2.28809337,187.22,187.18,4.80154412]
[1755758342631,2.86,187.27,187.19,4.80150516]
[1755758342832,5.14809337,187.27,187.2,4.80150516]
[1755758343032,5.14809337,187.27,187.21,4.80150516]
[1755758343230,2.86,187.26,187.18,2.74]
[1755758343431,2.86,187.26,187.19,4.80117322]
[1755758343631,2.86,187.26,187.2,4.80117322]
[1755758343831,2.86,187.25,187.21,4.80117322]
[1755758344138,2.86,187.23,187.14,2.74]
[1755758344335,2.28809337,187.21,187.15,4.80248931]
[1755758344632,2.86,187.2,187.16,7.54248931]
[1755758344836,2.86,187.2,187.16,2.74]
[1755758345028,2.86,187.2,187.17,4.80429069]
[1755758345224,2.86,187.2,187.16,2.74]
[1755758345225,2.86,187.2,187.18,4.80429069]
[1755758345424,2.86,187.2,187.16,2.74]
[1755758345624,2.86,187.2,187.17,4.80583396]
[1755758345834,2.86,187.2,187.18,4.80583444]
[1755758346038,2.86,187.2,187.17,2.74]
[1755758346226,2.86,187.2,187.18,4.80583396]
[1755758346427,2.86,187.2,187.17,2.74]
[1755758346632,2.86,187.2,187.18,4.80757526]
[1755758346835,5.14809337,187.21,187.12,2.74]
[1755758347129,2.86,187.2,187.13,4.80763679]
[1755758347335,2.86,187.2,187.14,4.80763679]
[1755758347530,2.28809337,187.21,187.15,4.80763679]
[1755758347736,2.86,187.17,187.16,4.80763679]
[1755758348330,2.86,187.17,187.12,2.74]
[1755758348632,2.28809337,187.18,187.13,4.81143505]
[1755758348833,5.14809337,187.2,187.14,7.55143505]
[1755758349132,5.14809337,187.2,187.09,9.80158787]
[1755758349133,2.86,187.16,187.15,4.81143505]
[1755758350535,2.28809337,187.2,187.16,2.74]
[1755758350738,2.28809337,187.2,187.17,4.81143505]
[1755758350739,5.14809337,187.2,187.17,4.81143505]
[1755758350930,2.86,187.2,187.18,4.81143505]
[1755758351125,5.14809337,187.21,187.17,2.74]
[1755758351327,5.14809337,187.21,187.18,4.81376672]
[1755758351534,2.28809337,187.22,187.14,2.74]
[1755758351832,2.28809337,187.22,187.15,4.81463189]
[1755758352037,2.28809337,187.22,187.16,4.81463189]
[1755758352237,5.14809337,187.22,187.17,7.55463189]
[1755758352535,2.86,187.19,187.18,4.81463189]
[1755758352735,5.14809337,187.19,187.1,2.74]
[1755758352936,2.86,187.15,187.11,7.55582568]
[1755758353136,2.86,187.15,187.12,7.55582568]
[1755758353334,2.86,187.15,187.13,4.81582568]
[1755758353536,2.86,187.15,187.12,2.74]
[1755758353537,2.28809337,187.16,187.14,4.81582568]
[1755758353835,2.28809337,187.16,187.15,4.81582568]
[1755758354138,5.14809337,187.16,187.15,4.81582568]
[1755758354437,5.14809337,187.16,187.15,4.81631892]
[1755758354633,5.14809337,187.16,187.08,2.74]
[1755758354838,2.28809337,187.12,187.09,4.81661372]
[1755758355035,5.14809337,187.12,187.1,4.81661372]
[1755758355241,2.28809337,187.12,187.11,4.81661372]
[1755758355639,2.28809337,187.12,187.07,2.74]
[1755758355837,5.14809337,187.12,187.07,2.74]
[1755758356740,5.14809337,187.1,187.07,2.74]
[1755758356942,5.14809337,187.1,187.02,4.45678787]
[1755758357140,2.28809337,187.08,187.0,2.74]
[1755758357540,2.28809337,187.09,187.0,2.74]
[1755758357742,2.28809337,187.09,187.02,2.74]
[1755758359641,2.28809337,187.07,187.03,2.74]
[1755758359945,2.28809337,187.07,186.99,5.3475]
[1755758360144,2.28809337,187.07,187.0,2.74]
[1755758362145,2.86,187.06,187.0,2.74]
[1755758362348,2.28809337,187.04,187.0,2.74]
[1755758362547,5.14809337,187.04,187.0,2.74]
[1755758365351,2.86,187.03,187.0,2.74]
[1755758365848,2.86,187.03,186.93,7.63749337]
[1755758366051,2.28809337,187.01,186.94,2.74]
[1755758368853,5.04809337,187.01,186.94,2.74]
[1755758370254,2.28809337,187.01,186.94,2.74]
[1755758371047,2.28809337,187.01,186.95,3.0]
[1755758372154,130.8,187.06,186.95,3.0]
[1755758372155,2.28809337,187.03,186.96,3.0]
[1755758377156,130.82,187.09,186.96,3.0]
[1755758377157,2.28809337,187.01,186.96,3.0]
[1755758377361,2.76,186.99,186.96,3.0]
[1755758377561,2.76,186.99,186.92,121.46668872]
[1755758377861,2.28809337,187.01,186.93,3.0]
[1755758378063,5.04809337,187.04,186.94,3.0]
[1755758378452,5.04809337,187.04,186.95,5.3489]
[1755758378756,5.04809337,187.04,186.96,3.0]
[1755758380057,5.04809337,187.04,186.97,3.0]
[1755758380759,2.28809337,187.07,186.99,3.0]
[1755758387369,2.28809337,187.07,186.99,8.3478]
[1755758387866,2.28809337,187.07,187.0,3.0]
[1755758388074,2.76,187.08,187.0,3.0]
[1755758388461,2.76,187.08,187.0,8.3473]
[1755758388661,2.76,187.08,187.0,3.0]
[1755758388966,2.76,187.08,187.01,5.3472]
[1755758389171,2.76,187.08,187.02,3.0]
[1755758392070,2.76,187.06,186.98,3.0]
[1755758392769,2.76,187.06,186.97,5.3482]
[1755758392966,2.76,187.06,186.98,8.348]
[1755758393171,2.76,187.06,186.98,5.348]
[1755758393371,2.76,187.06,186.99,3.0]
[1755758393878,2.76,187.06,187.0,3.0]
[1755758394777,2.28809337,187.1,187.0,5.3475]
[1755758394972,2.76,187.09,187.01,3.0]
[1755758395280,2.76,187.09,187.01,8.3471]
[1755758395672,2.28809337,187.13,187.02,3.0]
[1755758395976,2.76,187.12,187.02,3.0]
[1755758397178,2.76,187.12,187.04,2.87]
[1755758397376,2.76,187.12,187.05,2.87]
[1755758397681,2.76,187.12,187.05,8.216]
[1755758398476,2.76,187.12,187.05,2.87]
[1755758406197,2.76,187.12,187.06,2.87]
[1755758409096,2.96,187.15,187.07,2.28809337]
[1755758409298,2.96,187.15,187.08,2.87]
[1755758410197,2.96,187.15,187.09,5.3447]
[1755758410696,2.96,187.15,187.11,2.87]
[1755758411698,2.96,187.15,187.12,2.87]
[1755758413502,132.84809337,187.2,187.1,8.2146]
[1755758413700,2.96,187.19,187.1,8.2146]
[1755758414699,2.96,187.19,187.12,2.87]
[1755758415394,130.56,187.2,187.12,2.87]
[1755758415597,133.52,187.2,187.12,2.87]
[1755758415796,133.52,187.2,187.13,5.3436]
[1755758419419,2.96,187.2,187.17,2.87]
[1755758421004,6.75849,187.22,187.18,2.87]
[1755758421210,9.71849,187.22,187.18,2.87]
[1755758422503,2.96,187.21,187.16,2.87]
[1755758422707,2.96,187.21,187.17,2.87]
[1755758424713,6.75849,187.22,187.17,2.87]
[1755758424911,2.96,187.21,187.13,5.15809337]
[1755758425614,2.96,187.21,187.14,5.3435]
[1755758428107,6.75849,187.22,187.16,2.82]
[1755758429014,6.75849,187.22,187.17,5.3426]
[1755758429216,9.60849,187.22,187.18,2.82]
[1755758429418,6.75849,187.22,187.16,2.82]
[1755758429610,2.85,187.21,187.14,2.28809337]
[1755758430414,2.85,187.21,187.14,5.3435]
[1755758431213,2.85,187.21,187.12,2.28809337]
[1755758431416,2.85,187.21,187.17,2.82]
[1755758431916,2.85,187.2,187.17,2.82]
[1755758432114,2.85,187.2,187.13,2.82]
[1755758433514,2.85,187.2,187.13,8.1637]
[1755758434820,2.85,187.2,187.14,5.3434]
[1755758435212,2.85,187.2,187.13,2.82]
[1755758435418,2.85,187.2,187.14,5.3434]
[1755758436019,2.85,187.19,187.1,2.82]
[1755758436619,2.85,187.19,187.1,8.1645]
[1755758437012,2.85,187.19,187.1,2.82]
[1755758439519,2.85,187.16,187.1,2.82]
[1755758440216,2.85,187.16,187.06,361.98]
[1755758440419,2.85,187.16,187.08,5.3452]
[1755758440720,2.85,187.16,187.08,8.1652]
[1755758441822,2.85,187.16,187.08,2.82]
[1755758447732,2.85,187.16,187.1,8.1646]
[1755758448425,2.85,187.16,187.1,2.82]
[1755758450429,2.85,187.16,187.1,8.1646]
[1755758450626,2.85,187.16,187.1,2.82]
[1755758451530,2.85,187.16,187.11,5.3444]
[1755758451730,2.85,187.16,187.13,2.82]
[1755758455733,5.13809337,187.17,187.13,2.82]
[1755758456333,5.13809337,187.17,187.14,3.04]
[1755758458731,2.86,187.16,187.12,5.344]
[1755758458932,2.86,187.16,187.12,3.04]
[1755758460433,2.86,187.16,187.09,3.04]
[1755758461735,2.86,187.16,187.09,8.3849]
[1755758462037,2.86,187.19,187.09,3.04]
[1755758462235,2.86,187.19,187.12,5.3438]
[1755758462434,2.86,187.19,187.13,3.04]
[1755758462734,2.86,187.21,187.14,5.3433]
[1755758463037,0.03623225,187.18,187.16,3.04]
[1755758464141,2.86,187.16,187.14,0.0368315]
[1755758474037,2.86,187.15,187.14,0.0368315]
[1755758479544,2.89623225,187.18,187.15,3.04]
[1755758480245,2.86,187.17,187.15,3.04]
[1755758481946,0.03623225,187.18,187.15,3.04]
[1755758482248,2.89623225,187.18,187.15,3.04]
[1755758482449,0.03623225,187.18,187.16,6.80877705]
[1755758482749,0.03623225,187.18,187.17,3.04]
[1755758483149,0.03623225,187.18,187.17,8.3826]
[1755758484046,6.75849,187.22,187.17,3.04]
[1755758484243,8.22436705,187.22,187.15,5.92681398]
[1755758484547,2.86,187.21,187.15,1.46587705]
[1755758484742,2.86,187.21,187.15,6.80887705]
[1755758485156,4.32587705,187.2,187.16,3.04]
[1755758485357,9.61849,187.22,187.18,3.04]
[1755758485559,6.75849,187.22,187.2,3.04]
[1755758485754,6.75849,187.22,187.19,1.46587705]
[1755758485958,6.75849,187.22,187.21,9.84737705]
[1755758486156,6.75849,187.22,187.21,4.50587705]
[1755758486358,9.64849,187.22,187.19,3.02087803]
[1755758487153,9.64849,187.22,187.19,8.36267803]
[1755758487756,9.64849,187.22,187.2,5.3418]
[1755758487956,9.64849,187.22,187.19,3.02087803]
[1755758488459,6.75849,187.22,187.2,2.98]
[1755758489158,6.75849,187.22,187.21,2.98]
[1755758489359,6.75849,187.22,187.2,2.98]
[1755758489552,6.75849,187.22,187.2,5.3418]
[1755758489758,6.75849,187.22,187.2,8.3218]
[1755758490455,9.64849,187.22,187.19,0.04087803]
[1755758490652,2.89,187.21,187.19,0.04087803]
[1755758491258,9.64849,187.22,187.19,3.02087803]
[1755758491759,9.64849,187.22,187.19,8.36277803]
[1755758491959,6.75849,187.22,187.19,0.04087803]
[1755758492155,2.89,187.21,187.19,0.04087803]
[1755758494561,6.75849,187.22,187.19,0.04087803]
[1755758494861,6.75849,187.22,187.2,2.98]
[1755758495159,6.75849,187.22,187.21,2.98]
[1755758496559,6.75849,187.22,187.21,8.3215]
[1755758496759,6.75849,187.22,187.21,5.3415]
[1755758497760,6.75849,187.22,187.21,8.3215]
[1755758499563,6.75849,187.22,187.21,5.3415]
[1755758501661,6.75849,187.22,187.2,2.28867945]
[1755758501662,2.89,187.21,187.2,7.63047945]
[1755758501965,2.89,187.21,187.19,0.04087803]
[1755758503464,6.75849,187.22,187.19,0.04087803]
[1755758504464,6.75849,187.22,187.19,3.02087803]
[1755758504767,9.64849,187.22,187.2,5.3416]
[1755758505966,9.64849,187.22,187.21,5.3415]
[1755758506168,6.75849,187.22,187.21,5.3415]
[1755758507067,6.75849,187.22,187.21,8.3215]
[1755758512476,6.75849,187.22,187.21,5.3415]
[1755758516276,6.75849,187.22,187.21,6.80587833]
[1755758516476,6.75849,187.22,187.21,1.46437833]
[1755758518379,9.51849,187.22,187.21,1.46437833]
[1755758519481,6.75849,187.22,187.21,9.72587833]
[1755758520572,6.75849,187.22,187.21,1.46437833]
[1755758520773,9.51849,187.22,187.21,1.46437833]
[1755758529687,9.51849,187.22,187.2,9.80273693]
[1755758529988,9.51849,187.22,187.21,1.46437833]
[1755758533085,6.75849,187.22,187.21,6.80587833]
[1755758533288,6.75849,187.22,187.21,11.26681526]
[1755758537690,6.75849,187.22,187.21,14.18681526]
[1755758538488,6.75849,187.22,187.21,11.26681526]
[1755758538792,6.75849,187.22,187.21,14.18681526]
[1755758540590,2.76,187.29,187.25,5.3403]
[1755758540795,2.76,187.28,187.26,4.38437833]
[1755758541191,2.76,187.3,187.28,5.3394]
[1755758541392,2.76,187.3,187.29,1.46437833]
[1755758542091,2.76,187.3,187.29,6.80367833]
[1755758542592,2.76,187.35,187.29,1.46437833]
[1755758542792,2.76,187.33,187.3,5.339]
[1755758542992,2.76,187.32,187.31,1.97413179]
[1755758543299,2.76,187.32,187.31,3.43851012]
[1755758544192,2.76,187.32,187.31,8.77721012]
[1755758545096,2.76,187.32,187.31,3.43851012]
[1755758545294,2.76,187.32,187.31,3.43589777]
[1755758548201,2.76,187.32,187.31,1.46437833]
[1755758548498,2.76,187.32,187.31,3.43307601]
[1755758548798,2.76,187.32,187.31,1.46437833]
[1755758548999,2.76,187.32,187.31,3.43255068]
[1755758549499,2.76,187.32,187.31,1.96817235]
[1755758550593,3.3,187.32,187.21,1.46437833]
[1755758550800,1.46437833,187.26,187.21,1.46437833]
[1755758550997,2.91,187.24,187.21,1.46437833]
[1755758551297,2.91,187.23,187.2,1.46437833]
[1755758551496,2.91,187.23,187.2,4.34437833]
[1755758551699,2.91,187.23,187.21,2.88]
[1755758552500,2.91,187.31,187.22,2.88]
[1755758552699,2.91,187.31,187.23,5.3408]
[1755758552999,2.91,187.31,187.22,2.88]
[1755758553597,2.91,187.31,187.22,8.2212]
[1755758554299,2.91,187.31,187.23,5.3409]
[1755758554500,2.91,187.31,187.22,2.88]
[1755758554896,2.91,187.31,187.24,5.3405]
[1755758555096,2.91,187.31,187.24,8.2205]
[1755758555496,2.91,187.31,187.21,6.79220541]
[1755758555701,2.91,187.31,187.21,9.67220541]
[1755758556600,2.91,187.31,187.23,5.3409]
[1755758556904,2.91,187.31,187.21,5.16839392]
[1755758557097,2.91,187.31,187.22,5.3411]
[1755758557899,2.91,187.31,187.23,5.3409]
[1755758560699,2.91,187.31,187.23,8.2209]
[1755758560900,2.91,187.31,187.25,2.88]